fUST/lending_fUST_20240807
["ID","MTS","AMOUNT","RATE_DAILY","PERIOD"]
[334328570,1722982240509,-43119.8099968,0.00038226,4]
[334328571,1722982240518,-36768.14971931,0.00038246,5]
[334328572,1722982240527,-2000.0,0.00038246,2]
[334328573,1722982240538,-2000.0,0.00038251,45]
[334328574,1722982240548,-2000.0,0.00038251,45]
[334328575,1722982240557,-1048.55716593,0.00038256,2]
[334328576,1722982240567,-150.112233,0.000383,9]
[334328577,1722982240576,-150.112233,0.000383,6]
[334328578,1722982240586,-606.0,0.000383,2]
[334328579,1722982240595,-43119.8099968,0.00038335,4]
[334328580,1722982240605,-86239.6199937,0.00038336,4]
[334328581,1722982240614,-1108.94,0.00038345,14]
[334328583,1722982240624,-1108.94,0.00038345,14]
[334328585,1722982240633,-1108.94,0.00038345,14]
[334328587,1722982240645,-1108.94,0.00038345,14]
[334328588,1722982240655,-1108.94,0.00038345,14]
[334328589,1722982240664,-1108.94,0.00038345,14]
[334328590,1722982240674,-155.0,0.0003835,39]
[334328591,1722982240684,-1108.94,0.00038355,14]
[334328592,1722982240693,-1108.94,0.00038355,14]
[334328593,1722982240702,-1108.94,0.00038355,14]
[334328594,1722982240711,-1108.94,0.00038355,14]
[334328595,1722982240721,-1108.94,0.00038355,14]
[334328596,1722982240730,-1108.94,0.00038355,14]
[334328597,1722982240740,-1108.94,0.00038355,14]
[334328598,1722982240750,-1108.94,0.00038355,14]
[334328599,1722982240759,-1108.94,0.00038355,14]
[334328600,1722982240768,-1108.94,0.00038355,14]
[334328601,1722982240777,-1108.94,0.00038355,14]
[334328602,1722982240787,-1108.94,0.00038355,14]
[334328603,1722982240795,-1108.94,0.00038355,14]
[334328604,1722982240805,-1109.01026503,0.00038355,14]
[334328605,1722982240814,-4518.52521512,0.00038356,21]
[334328606,1722982241410,-24728.92747799,0.00038356,21]
[334328607,1722982241421,-6369.43058913,0.00038356,21]
[334328608,1722982241432,-500.0,0.00038356,14]
[334328609,1722982241441,-500.0,0.00038356,14]
[334328610,1722982241451,-349.11158065,0.00038356,14]
[334328611,1722982241461,-532.09,0.00038356,14]
[334328612,1722982241471,-516.80386997,0.00038356,14]
[334328613,1722982241480,-533.53733224,0.00038356,14]
[334328614,1722982241489,-500.0,0.00038356,14]
[334328615,1722982241498,-500.0,0.00038356,14]
[334328616,1722982241508,-500.0,0.00038356,14]
[334328617,1722982241517,-500.0,0.00038356,14]
[334328618,1722982241527,-500.0,0.00038356,14]
[334328619,1722982241538,-500.0,0.00038356,14]
[334328620,1722982241548,-500.0,0.00038356,14]
[334328621,1722982241560,-500.0,0.00038356,14]
[334328622,1722982241571,-500.0,0.00038356,14]
[334328623,1722982241582,-845.16,0.00038356,14]
[334328624,1722982241593,-276.01429211,0.00038356,14]
[334328625,1722982241604,-500.0,0.00038356,14]
[334328626,1722982241616,-605.47,0.00038356,14]
[334328627,1722982241627,-1158.64,0.00038356,14]
[334328628,1722982241638,-500.0,0.00038356,14]
[334328629,1722982241648,-500.0,0.00038356,14]
[334328630,1722982241659,-500.0,0.00038356,14]
[334328631,1722982241668,-500.0,0.00038356,14]
[334328632,1722982241678,-500.0,0.00038356,14]
[334328633,1722982241687,-500.0,0.00038356,14]
[334328634,1722982241698,-500.0,0.00038356,14]
[334328635,1722982241708,-530.93319508,0.00038356,14]
[334328636,1722982241719,-1512.36,0.00038356,14]
[334328637,1722982241730,-546.76,0.00038356,14]
[334328638,1722982241741,-500.0,0.00038356,14]
[334328639,1722982241752,-500.0,0.00038356,14]
[334328640,1722982241763,-612.05,0.00038356,14]
[334328641,1722982241774,-500.0,0.00038356,14]
[334328642,1722982241783,-500.0,0.00038356,14]
[334328643,1722982241792,-2666.61,0.00038356,14]
[334328644,1722982241801,-525.15,0.00038356,14]
[334328645,1722982241811,-500.0,0.00038356,14]
[334328646,1722982241820,-1119.52,0.00038356,14]
[334328647,1722982241829,-500.0,0.00038356,14]
[334328648,1722982241838,-500.0,0.00038356,14]
[334328649,1722982241848,-500.0,0.00038356,14]
[334328650,1722982241861,-500.0,0.00038356,14]
[334328651,1722982241871,-540.65,0.00038356,14]
[334328652,1722982241881,-500.0,0.00038356,14]
[334328653,1722982241892,-500.0,0.00038356,14]
[334328654,1722982241901,-500.0,0.00038356,14]
[334328655,1722982241910,-151.0,0.00038356,7]
[334328656,1722982241919,-500.0,0.00038356,14]
[334328657,1722982241931,-500.0,0.00038356,14]
[334328658,1722982241941,-500.0,0.00038356,14]
[334328659,1722982241950,-500.0,0.00038356,14]
[334328660,1722982241960,-500.0,0.00038356,14]
[334328661,1722982241969,-151.0,0.00038356,7]
[334328662,1722982241979,-500.0,0.00038356,14]
[334328663,1722982241988,-500.0,0.00038356,14]
[334328664,1722982241997,-500.0,0.00038356,14]
[334328665,1722982242007,-560.92,0.00038356,14]
[334328666,1722982242016,-529.38204664,0.00038356,30]
[334328667,1722982242026,-982.69,0.00038356,14]
[334328668,1722982242035,-492.01017217,0.00038356,14]
[334328669,1722982242045,-500.0,0.00038356,14]
[334328670,1722982242056,-151.0,0.00038356,7]
[334328671,1722982242066,-500.0,0.00038356,14]
[334328672,1722982242075,-500.0,0.00038356,14]
[334328673,1722982242084,-500.0,0.00038356,14]
[334328674,1722982242093,-513.98,0.00038356,14]
[334328675,1722982242102,-500.0,0.00038356,14]
[334328676,1722982242112,-1482.23,0.00038356,14]
[334328677,1722982242121,-500.0,0.00038356,14]
[334328678,1722982242130,-500.0,0.00038356,14]
[334328679,1722982242145,-500.0,0.00038356,14]
[334328680,1722982242155,-500.0,0.00038356,14]
[334328681,1722982242165,-500.0,0.00038356,14]
[334328682,1722982242175,-2279.05,0.00038356,14]
[334328683,1722982242184,-500.0,0.00038356,14]
[334328684,1722982242194,-206.50609866,0.00038356,14]
[334328685,1722982242203,-500.0,0.00038356,14]
[334328686,1722982242213,-500.0,0.00038356,14]
[334328687,1722982242222,-500.0,0.00038356,14]
[334328688,1722982242232,-500.0,0.00038356,14]
[334328689,1722982242241,-528.41149434,0.00038356,14]
[334328690,1722982242252,-1008.52,0.00038356,14]
[334328691,1722982242263,-500.0,0.00038356,14]
[334328692,1722982242272,-500.0,0.00038356,14]
[334328693,1722982242282,-500.0,0.00038356,14]
[334328694,1722982242291,-765.72,0.00038356,14]
[334328695,1722982242301,-500.0,0.00038356,14]
[334328696,1722982242310,-500.0,0.00038356,10]
[334328697,1722982242320,-500.0,0.00038356,14]
[334328698,1722982242329,-500.0,0.00038356,14]
[334328699,1722982242340,-500.0,0.00038356,14]
[334328700,1722982242351,-402.58918218,0.00038356,14]
[334328701,1722982242360,-699.72,0.00038356,14]
[334328702,1722982242369,-947.49,0.00038356,14]
[334328703,1722982242379,-737.68,0.00038356,14]
[334328704,1722982242558,-500.0,0.00038356,14]
[334328705,1722982242570,-500.0,0.00038356,14]
[334328706,1722982242580,-587.92,0.00038356,14]
[334328707,1722982242589,-500.0,0.00038356,14]
[334328708,1722982242598,-500.0,0.00038356,14]
[334328709,1722982242608,-860.9,0.00038356,14]
[334328710,1722982242617,-1051.94,0.00038356,14]
[334328711,1722982242626,-500.0,0.00038356,14]
[334328712,1722982242637,-504.14,0.00038356,14]
[334328713,1722982242647,-500.0,0.00038356,2]
[334328714,1722982242656,-500.0,0.00038356,14]
[334328715,1722982242664,-500.0,0.00038356,14]
[334328716,1722982242673,-500.0,0.00038356,14]
[334328717,1722982242682,-500.0,0.00038356,14]
[334328718,1722982242691,-500.0,0.00038356,14]
[334328719,1722982242701,-500.0,0.00038356,14]
[334328720,1722982242710,-500.0,0.00038356,14]
[334328721,1722982242720,-777.76,0.00038356,14]
[334328722,1722982242729,-500.0,0.00038356,14]
[334328723,1722982242739,-500.0,0.00038356,14]
[334328724,1722982242749,-500.0,0.00038356,14]
[334328725,1722982242759,-1361.59,0.00038356,14]
[334328726,1722982242768,-500.0,0.00038356,14]
[334328727,1722982242777,-500.0,0.00038356,14]
[334328728,1722982242788,-500.0,0.00038356,14]
[334328729,1722982242797,-500.0,0.00038356,14]
[334328730,1722982242806,-771.71,0.00038356,14]
[334328731,1722982242816,-500.0,0.00038356,50]
[334328732,1722982242825,-500.0,0.00038356,14]
[334328733,1722982242834,-500.0,0.00038356,14]
[334328734,1722982242849,-2223.85,0.00038356,14]
[334328736,1722982242858,-500.0,0.00038356,14]
[334328737,1722982242867,-500.0,0.00038356,14]
[334328738,1722982242877,-316.56229011,0.00038356,14]
[334328739,1722982242890,-366.92799022,0.00038356,14]
[334328740,1722982242899,-500.0,0.00038356,14]
[334328741,1722982242907,-500.0,0.00038356,14]
[334328742,1722982242917,-539.81777918,0.00038356,14]
[334328743,1722982242927,-500.0,0.00038356,14]
[334328744,1722982242936,-500.0,0.00038356,14]
[334328745,1722982242946,-151.0,0.00038356,7]
[334328746,1722982242956,-1958.64,0.00038356,14]
[334328747,1722982242965,-500.0,0.00038356,14]
[334328748,1722982242975,-1268.81,0.00038356,14]
[334328749,1722982242984,-500.0,0.00038356,14]
[334328750,1722982242993,-500.0,0.00038356,14]
[334328751,1722982243003,-500.0,0.00038356,14]
[334328752,1722982243012,-719.1,0.00038356,14]
[334328754,1722982243022,-500.0,0.00038356,14]
[334328755,1722982243031,-500.0,0.00038356,14]
[334328756,1722982243040,-500.0,0.00038356,14]
[334328757,1722982243049,-579.16,0.00038356,14]
[334328759,1722982243058,-959.28,0.00038356,14]
[334328760,1722982243067,-596.75848101,0.00038356,14]
[334328761,1722982243077,-500.0,0.00038356,14]
[334328762,1722982243086,-568.77,0.00038356,14]
[334328763,1722982243095,-500.0,0.00038356,14]
[334328764,1722982243105,-500.21,0.00038356,14]
[334328765,1722982243114,-500.0,0.00038356,14]
[334328766,1722982243125,-500.0,0.00038356,14]
[334328767,1722982243135,-688.57,0.00038356,14]
[334328769,1722982243146,-1746.15,0.00038356,14]
[334328770,1722982243155,-500.0,0.00038356,14]
[334328771,1722982243164,-500.0,0.00038356,14]
[334328772,1722982243174,-500.0,0.00038356,14]
[334328773,1722982243184,-636.32,0.00038356,14]
[334328774,1722982243194,-500.0,0.00038356,14]
[334328775,1722982243203,-500.0,0.00038356,14]
[334328776,1722982243213,-516.63,0.00038356,14]
[334328777,1722982243222,-590.87130158,0.00038356,14]
[334328778,1722982243232,-813.97,0.00038356,14]
[334328779,1722982243241,-500.0,0.00038356,14]
[334328780,1722982243250,-500.0,0.00038356,14]
[334328781,1722982243259,-663.33,0.00038356,14]
[334328782,1722982243268,-586.12,0.00038356,14]
[334328783,1722982243277,-2953.41,0.00038356,14]
[334328784,1722982243286,-500.0,0.00038356,14]
[334328785,1722982243296,-500.0,0.00038356,14]
[334328786,1722982243305,-500.0,0.00038356,14]
[334328787,1722982243314,-687.88,0.00038356,14]
[334328788,1722982243324,-500.0,0.00038356,14]
[334328789,1722982243333,-819.97,0.00038356,14]
[334328790,1722982243342,-500.0,0.00038356,14]
[334328791,1722982243351,-500.0,0.00038356,14]
[334328792,1722982243361,-984.26,0.00038356,14]
[334328793,1722982243370,-709.52,0.00038356,14]
[334328794,1722982243380,-500.0,0.00038356,14]
[334328795,1722982243390,-816.82,0.00038356,14]
[334328796,1722982243401,-671.61,0.00038356,14]
[334328797,1722982243411,-500.0,0.00038356,14]
[334328798,1722982243420,-500.0,0.00038356,14]
[334328799,1722982243430,-500.0,0.00038356,14]
[334328800,1722982243439,-500.0,0.00038356,14]
[334328801,1722982243449,-500.0,0.00038356,14]
[334328802,1722982243458,-500.0,0.00038356,14]
[334328803,1722982243467,-500.0,0.00038356,14]
[334328804,1722982243477,-1178.34,0.00038356,14]
[334328805,1722982243486,-150.0,0.00038356,14]
[334328806,1722982243496,-500.0,0.00038356,14]
[334328807,1722982243506,-195.136467,0.00038356,14]
[334328808,1722982243515,-500.0,0.00038356,14]
[334328809,1722982243525,-500.0,0.00038356,14]
[334328810,1722982243534,-592.45,0.00038356,14]
[334328811,1722982243543,-1000.0,0.00038356,5]
[334328812,1722982243553,-200.0,0.00038356,7]
[334328813,1722982243562,-500.0,0.00038356,14]
[334328814,1722982243571,-1934.41,0.00038356,14]
[334328815,1722982243580,-500.0,0.00038356,14]
[334328816,1722982243589,-500.0,0.00038356,14]
[334328817,1722982243598,-632.84,0.00038356,14]
[334328818,1722982243607,-500.0,0.00038356,14]
[334328819,1722982243616,-151.0,0.00038356,7]
[334328820,1722982243626,-710.69,0.00038356,14]
[334328821,1722982243635,-2408.82,0.00038356,14]
[334328822,1722982243646,-500.0,0.00038356,14]
[334328823,1722982243655,-700.36,0.00038356,14]
[334328824,1722982243664,-500.0,0.00038356,14]
[334328825,1722982243674,-500.0,0.00038356,14]
[334328826,1722982243683,-500.0,0.00038356,14]
[334328827,1722982243693,-500.0,0.00038356,14]
[334328828,1722982243702,-1075.7,0.00038356,14]
[334328829,1722982243713,-576.0,0.00038356,14]
[334328830,1722982243725,-151.0,0.00038356,7]
[334328831,1722982243738,-500.0,0.00038356,14]
[334328832,1722982243748,-500.0,0.00038356,14]
[334328833,1722982243759,-503.53237447,0.00038356,14]
[334328834,1722982243769,-500.0,0.00038356,14]
[334328835,1722982243779,-500.0,0.00038356,14]
[334328836,1722982243789,-688.00417253,0.00038356,14]
[334328837,1722982243799,-500.0,0.00038356,14]
[334328838,1722982243808,-509.53941895,0.00038356,14]
[334328839,1722982243818,-500.0,0.00038356,14]
[334328840,1722982243828,-500.0,0.00038356,14]
[334328841,1722982243839,-500.0,0.00038356,14]
[334328842,1722982243853,-4087.92,0.00038356,14]
[334328843,1722982243862,-500.0,0.00038356,14]
[334328844,1722982243871,-807.44,0.00038356,14]
[334328845,1722982243881,-625.63,0.00038356,14]
[334328846,1722982243893,-500.0,0.00038356,14]
[334328847,1722982243902,-500.0,0.00038356,14]
[334328848,1722982243912,-500.0,0.00038356,14]
[334328849,1722982243923,-586.61584633,0.00038356,14]
[334328850,1722982243936,-500.0,0.00038356,14]
[334328851,1722982243947,-234.67378755,0.00038356,14]
[334328852,1722982243958,-500.0,0.00038356,14]
[334328853,1722982243967,-1524.37,0.00038356,14]
[334328854,1722982243977,-500.0,0.00038356,14]
[334328855,1722982243987,-665.57,0.00038356,14]
[334328856,1722982243999,-624.34339839,0.00038356,14]
[334328857,1722982244009,-500.0,0.00038356,14]
[334328858,1722982244019,-651.75,0.00038356,14]
[334328859,1722982244030,-500.0,0.00038356,14]
[334328860,1722982244040,-500.0,0.00038356,14]
[334328861,1722982244051,-151.0,0.00038356,7]
[334328862,1722982244060,-3553.82,0.00038356,14]
[334328863,1722982244070,-151.0,0.00038356,7]
[334328864,1722982244079,-1287.32,0.00038356,14]
[334328865,1722982244089,-151.0,0.00038356,7]
[334328866,1722982244099,-151.0,0.00038356,7]
[334328867,1722982244108,-151.0,0.00038356,7]
[334328868,1722982244118,-500.0,0.00038356,14]
[334328869,1722982244130,-535.39,0.00038356,14]
[334328870,1722982244141,-884.7,0.00038356,14]
[334328871,1722982244151,-500.0,0.00038356,14]
[334328872,1722982244160,-515.12,0.00038356,14]
[334328873,1722982244170,-1181.35,0.00038356,14]
[334328874,1722982244180,-500.0,0.00038356,14]
[334328875,1722982244189,-500.0,0.00038356,14]
[334328876,1722982244198,-500.0,0.00038356,14]
[334328877,1722982244208,-500.0,0.00038356,14]
[334328878,1722982244217,-500.0,0.00038356,14]
[334328879,1722982244227,-882.85,0.00038356,14]
[334328880,1722982244236,-500.0,0.00038356,14]
[334328881,1722982244245,-500.0,0.00038356,14]
[334328882,1722982244254,-500.0,0.00038356,14]
[334328883,1722982244263,-500.0,0.00038356,14]
[334328884,1722982244273,-500.0,0.00038356,14]
[334328885,1722982244282,-663.43,0.00038356,14]
[334328886,1722982244291,-500.0,0.00038356,2]
[334328887,1722982244301,-500.0,0.00038356,14]
[334328888,1722982244311,-500.0,0.00038356,14]
[334328889,1722982244320,-511.75049245,0.00038356,14]
[334328890,1722982244329,-500.0,0.00038356,14]
[334328891,1722982244338,-1279.58,0.00038356,14]
[334328892,1722982244348,-500.0,0.00038356,14]
[334328893,1722982244357,-500.0,0.00038356,14]
[334328894,1722982244366,-500.0,0.00038356,14]
[334328895,1722982244375,-500.0,0.00038356,14]
[334328896,1722982244384,-500.0,0.00038356,14]
[334328897,1722982244396,-500.0,0.00038356,14]
[334328898,1722982244406,-552.39,0.00038356,14]
[334328899,1722982244415,-500.0,0.00038356,14]
[334328900,1722982244424,-500.0,0.00038356,14]
[334328901,1722982244433,-500.0,0.00038356,14]
[334328902,1722982244443,-707.55,0.00038356,14]
[334328903,1722982244452,-500.0,0.00038356,14]
[334328904,1722982244461,-586.12,0.00038356,14]
[334328905,1722982244470,-500.0,0.00038356,14]
[334328906,1722982244479,-923.14,0.00038356,14]
[334328907,1722982244488,-709.31,0.00038356,14]
[334328908,1722982244498,-500.0,0.00038356,14]
[334328909,1722982244507,-488.99908284,0.00038356,14]
[334328910,1722982244517,-500.0,0.00038356,14]
[334328911,1722982244526,-1976.98,0.00038356,14]
[334328912,1722982244535,-554.01,0.00038356,14]
[334328913,1722982244544,-843.51,0.00038356,14]
[334328914,1722982244553,-500.0,0.00038356,14]
[334328915,1722982244563,-1548.72,0.00038356,14]
[334328916,1722982244572,-2683.06,0.00038356,14]
[334328917,1722982244581,-1499.92,0.00038356,14]
[334328918,1722982244591,-500.0,0.00038356,14]
[334328919,1722982244600,-1059.48,0.00038356,14]
[334328920,1722982244609,-1302.76,0.00038356,14]
[334328921,1722982244619,-553.91615479,0.00038356,14]
[334328922,1722982244628,-560.52,0.00038356,14]
[334328923,1722982244639,-1106.83,0.00038356,14]
[334328924,1722982244648,-500.0,0.00038356,14]
[334328925,1722982244657,-500.0,0.00038356,14]
[334328926,1722982244666,-500.0,0.00038356,14]
[334328927,1722982244676,-500.0,0.00038356,14]
[334328928,1722982244687,-3104.08,0.00038356,14]
[334328929,1722982244697,-535.18931108,0.00038356,14]
[334328930,1722982244707,-151.0,0.00038356,7]
[334328931,1722982244717,-151.0,0.00038356,7]
[334328932,1722982244726,-500.0,0.00038356,14]
[334328933,1722982244737,-1759.64,0.00038356,14]
[334328934,1722982244746,-500.0,0.00038356,14]
[334328935,1722982244756,-638.53,0.00038356,14]
[334328936,1722982244765,-509.26,0.00038356,14]
[334328937,1722982244775,-500.0,0.00038356,14]
[334328938,1722982244784,-697.18,0.00038356,14]
[334328939,1722982244794,-2170.35,0.00038356,14]
[334328940,1722982244803,-500.0,0.00038356,14]
[334328941,1722982244812,-500.0,0.00038356,14]
[334328942,1722982244821,-500.0,0.00038356,14]
[334328943,1722982244831,-2375.33,0.00038356,14]
[334328944,1722982244842,-698.17,0.00038356,14]
[334328945,1722982244855,-562.29,0.00038356,14]
[334328946,1722982244865,-500.0,0.00038356,14]
[334328947,1722982244874,-500.0,0.00038356,14]
[334328948,1722982244884,-151.0,0.00038356,7]
[334328949,1722982244895,-688.77,0.00038356,14]
[334328950,1722982244905,-500.0,0.00038356,14]
[334328951,1722982244914,-2907.26,0.00038356,14]
[334328952,1722982244923,-683.26,0.00038356,14]
[334328953,1722982244934,-500.0,0.00038356,14]
[334328954,1722982244944,-500.0,0.00038356,14]
[334328955,1722982244953,-500.0,0.00038356,14]
[334328956,1722982244963,-500.0,0.00038356,14]
[334328957,1722982244972,-1162.57,0.00038356,14]
[334328958,1722982244982,-500.0,0.00038356,14]
[334328959,1722982244991,-712.11,0.00038356,14]
[334328960,1722982245001,-500.0,0.00038356,14]
[334328961,1722982245011,-500.0,0.00038356,14]
[334328962,1722982245021,-500.0,0.00038356,14]
[334328963,1722982245030,-501.23794915,0.00038356,14]
[334328964,1722982245039,-500.0,0.00038356,14]
[334328965,1722982245048,-500.0,0.00038356,14]
[334328966,1722982245058,-1092.39,0.00038356,14]
[334328967,1722982245067,-538.42399478,0.00038356,90]
[334328968,1722982245077,-1821.1,0.00038356,14]
[334328969,1722982245087,-500.0,0.00038356,14]
[334328970,1722982245096,-500.0,0.00038356,14]
[334328971,1722982245106,-1698.82,0.00038356,14]
[334328972,1722982245115,-500.0,0.00038356,14]
[334328973,1722982245125,-500.0,0.00038356,14]
[334328974,1722982245135,-500.0,0.00038356,14]
[334328975,1722982245146,-500.0,0.00038356,14]
[334328976,1722982245156,-3231.56,0.00038356,14]
[334328977,1722982245166,-500.0,0.00038356,14]
[334328978,1722982245175,-974.24,0.00038356,14]
[334328979,1722982245185,-151.0,0.00038356,7]
[334328980,1722982245195,-500.0,0.00038356,14]
[334328981,1722982245204,-1093.78,0.00038356,14]
[334328982,1722982245214,-500.0,0.00038356,14]
[334328983,1722982245223,-2023.54,0.00038356,14]
[334328984,1722982245232,-500.0,0.00038356,14]
[334328985,1722982245242,-546.4,0.00038356,14]
[334328986,1722982245251,-589.01,0.00038356,14]
[334328987,1722982245261,-500.0,0.00038356,14]
[334328988,1722982245271,-520.1808664,0.00038356,14]
[334328989,1722982245280,-3185.69,0.00038356,14]
[334328990,1722982245290,-500.0,0.00038356,14]
[334328991,1722982245299,-1590.94,0.00038356,14]
[334328992,1722982245310,-500.0,0.00038356,14]
[334328993,1722982245320,-785.74,0.00038356,14]
[334328994,1722982245329,-500.0,0.00038356,14]
[334328995,1722982245339,-500.0,0.00038356,14]
[334328996,1722982245349,-151.0,0.00038356,7]
[334328997,1722982245358,-265.150538,0.00038356,7]
[334328998,1722982245369,-2426.55,0.00038356,14]
[334328999,1722982245378,-500.0,0.00038356,14]
[334329000,1722982245389,-3211.49,0.00038356,14]
[334329001,1722982245399,-542.51,0.00038356,14]
[334329002,1722982245408,-500.0,0.00038356,14]
[334329003,1722982245417,-554.44731363,0.00038356,14]
[334329004,1722982245426,-500.0,0.00038356,14]
[334329005,1722982245435,-500.0,0.00038356,14]
[334329006,1722982245444,-1159.3,0.00038356,14]
[334329007,1722982245453,-1778.17,0.00038356,14]
[334329008,1722982245462,-500.0,0.00038356,14]
[334329009,1722982245472,-500.0,0.00038356,14]
[334329010,1722982245482,-682.99,0.00038356,14]
[334329011,1722982245492,-517.27,0.00038356,14]
[334329012,1722982245501,-1667.1,0.00038356,14]
[334329013,1722982245512,-569.55,0.00038356,14]
[334329014,1722982245522,-500.0,0.00038356,14]
[334329015,1722982245531,-813.59,0.00038356,14]
[334329016,1722982245541,-500.0,0.00038356,14]
[334329017,1722982245551,-512.8772363,0.00038356,14]
[334329018,1722982245561,-500.0,0.00038356,14]
[334329019,1722982245570,-500.0,0.00038356,14]
[334329020,1722982245579,-500.0,0.00038356,14]
[334329021,1722982245589,-505.06,0.00038356,14]
[334329022,1722982245599,-609.89690966,0.00038356,14]
[334329023,1722982245608,-1101.36,0.00038356,14]
[334329024,1722982245618,-2751.05,0.00038356,14]
[334329025,1722982245627,-500.0,0.00038356,14]
[334329026,1722982245637,-1025.5,0.00038356,14]
[334329027,1722982245656,-3831.84,0.00038356,14]
[334329028,1722982245665,-500.0,0.00038356,14]
[334329029,1722982245674,-500.0,0.00038356,14]
[334329030,1722982245683,-636.6,0.00038356,14]
[334329031,1722982245693,-3073.53,0.00038356,14]
[334329032,1722982245702,-500.0,0.00038356,14]
[334329033,1722982245711,-711.28,0.00038356,14]
[334329034,1722982245721,-1314.67,0.00038356,14]
[334329035,1722982245731,-151.0,0.00038356,7]
[334329036,1722982245742,-570.41,0.00038356,14]
[334329037,1722982245752,-500.0,0.00038356,14]
[334329038,1722982245762,-228.31879664,0.00038356,14]
[334329039,1722982245772,-9088.65,0.00038356,14]
[334329040,1722982245781,-3655.95,0.00038356,14]
[334329041,1722982245791,-4500.8,0.00038356,14]
[334329042,1722982245800,-7931.22,0.00038356,14]
[334329043,1722982245809,-500.0,0.00038356,14]
[334329044,1722982245819,-500.0,0.00038356,14]
[334329045,1722982245829,-500.0,0.00038356,14]
[334329046,1722982245840,-151.0,0.00038356,7]
[334329047,1722982245853,-483.20435339,0.00038356,14]
[334329048,1722982245863,-151.0,0.00038356,7]
[334329049,1722982245872,-151.0,0.00038356,7]
[334329050,1722982245882,-151.0,0.00038356,7]
[334329051,1722982245893,-151.0,0.00038356,7]
[334329052,1722982245903,-632.91,0.00038356,14]
[334329053,1722982245912,-151.0,0.00038356,7]
[334329054,1722982245922,-566.49,0.00038356,14]
[334329055,1722982245933,-151.0,0.00038356,7]
[334329056,1722982245943,-270.922242,0.00038356,7]
[334329057,1722982245953,-500.0,0.00038356,14]
[334329058,1722982245963,-500.0,0.00038356,14]
[334329059,1722982245973,-479.22338152,0.00038356,14]
[334329060,1722982245982,-5392.07,0.00038356,14]
[334329061,1722982245992,-500.0,0.00038356,14]
[334329062,1722982246001,-500.0,0.00038356,14]
[334329063,1722982246011,-1092.54,0.00038356,14]
[334329064,1722982246021,-500.0,0.00038356,14]
[334329065,1722982246030,-1708.76,0.00038356,14]
[334329066,1722982246040,-975.82,0.00038356,14]
[334329067,1722982246049,-640.76,0.00038356,14]
[334329068,1722982246062,-500.0,0.00038356,14]
[334329069,1722982246072,-500.0,0.00038356,14]
[334329070,1722982246082,-500.0,0.00038356,14]
[334329071,1722982246092,-151.0,0.00038356,7]
[334329072,1722982246102,-151.0,0.00038356,7]
[334329073,1722982246111,-151.0,0.00038356,7]
[334329074,1722982246121,-778.07,0.00038356,14]
[334329075,1722982246131,-500.0,0.00038356,14]
[334329076,1722982246143,-1382.38,0.00038356,14]